lending/lending_fUSD_20260306
["ID","MTS","AMOUNT","RATE_DAILY","PERIOD"]
[407783269,1772797869340,-1012.181411,0.00041096,120]
[407783270,1772797869350,-352.551056,0.00041096,120]
[407783271,1772797869360,-248.206969,0.00041096,120]
[407783272,1772797869371,-1012.181411,0.00041096,120]
[407783273,1772797869381,-248.206969,0.00041096,120]
[407783274,1772797869391,-248.206969,0.00041096,120]
[407783275,1772797869403,-352.551056,0.00041096,120]
[407783276,1772797869412,-1012.181411,0.00041096,120]
[407783277,1772797869422,-352.551056,0.00041096,120]
[407783278,1772797869432,-1012.181411,0.00041096,120]
[407783279,1772797869442,-151.0,0.00041096,120]
[407783280,1772797869452,-352.551056,0.00041096,120]
[407783281,1772797869462,-1012.181411,0.00041096,120]
[407783282,1772797869472,-248.206969,0.00041096,120]
[407783283,1772797869482,-151.0,0.00041096,120]
[407783284,1772797869491,-248.206969,0.00041096,120]
[407783285,1772797869501,-151.0,0.00041096,120]
[407783286,1772797869512,-248.206969,0.00041096,120]
[407783287,1772797869522,-1012.181411,0.00041096,120]
[407783288,1772797869531,-1012.181411,0.00041096,120]
[407783289,1772797869541,-1012.181411,0.00041096,120]
[407783290,1772797869551,-248.206969,0.00041096,120]
[407783291,1772797869561,-151.0,0.00041096,120]
[407783292,1772797869572,-248.206969,0.00041096,120]
[407783293,1772797869582,-151.0,0.00041096,120]
[407783294,1772797869592,-151.0,0.00041096,120]
[407783295,1772797869601,-248.206969,0.00041096,120]
[407783296,1772797869611,-1012.181411,0.00041096,120]
[407783297,1772797869620,-1012.181411,0.00041096,120]
[407783298,1772797869630,-1012.181411,0.00041096,120]
[407783299,1772797869640,-151.0,0.00041096,120]
[407783300,1772797869650,-151.0,0.00041096,120]
[407783301,1772797869660,-189.490231,0.00041096,120]
[407783302,1772797869670,-151.0,0.00041096,120]
[407783303,1772797869679,-244.316876,0.00041096,120]
[407783304,1772797869689,-181.099671,0.00041096,120]
[407783305,1772797869699,-151.0,0.00041096,120]
[407783306,1772797869708,-151.0,0.00041096,120]
[407783307,1772797869718,-151.0,0.00041096,120]
[407783308,1772797869727,-151.0,0.00041096,120]
[407783309,1772797869737,-157.039722,0.00041096,120]
[407783310,1772797869747,-151.0,0.00041096,120]
[407783311,1772797869757,-151.0,0.00041096,120]
[407783312,1772797869767,-151.0,0.00041096,120]
[407783313,1772797869776,-151.000007,0.00041096,120]
[407783314,1772797869787,-151.0,0.00041096,120]
[407783315,1772797869796,-151.0,0.00041096,120]
[407783316,1772797869806,-151.0,0.00041096,120]
[407783317,1772797869815,-269.804414,0.00041096,120]
[407783318,1772797869827,-151.0,0.00041096,120]
[407783319,1772797869837,-152.546026,0.00041096,120]
[407783320,1772797869847,-151.0,0.00041096,120]
[407783321,1772797869857,-151.0,0.00041096,120]
[407783322,1772797869866,-151.0,0.00041096,120]
[407783323,1772797869876,-151.0,0.00041096,120]
[407783324,1772797869886,-215.106906,0.00041096,120]
[407783325,1772797869895,-151.0,0.00041096,120]
[407783326,1772797869905,-151.0,0.00041096,120]
[407783327,1772797870245,-154.222734,0.00041096,120]
[407783328,1772797870262,-204.060611,0.00041096,120]
[407783329,1772797870272,-192.200977,0.00041096,120]
[407783330,1772797870282,-192.200977,0.00041096,120]
[407783331,1772797870291,-151.245665,0.00041096,120]
[407783332,1772797870300,-192.200977,0.00041096,120]
[407783333,1772797870308,-151.245665,0.00041096,120]
[407783334,1772797870317,-151.245665,0.00041096,120]
[407783335,1772797870326,-192.200977,0.00041096,120]
[407783336,1772797870335,-192.200977,0.00041096,120]
[407783337,1772797870344,-151.245665,0.00041096,120]
[407783338,1772797870354,-192.200977,0.00041096,120]
[407783339,1772797870363,-151.245665,0.00041096,120]
[407783340,1772797870372,-151.245665,0.00041096,120]
[407783341,1772797870381,-192.200977,0.00041096,120]
[407783342,1772797870391,-192.200977,0.00041096,120]
[407783343,1772797870400,-307.934071,0.00041096,120]
[407783344,1772797870409,-151.245665,0.00041096,120]
[407783345,1772797870419,-192.200977,0.00041096,120]
[407783346,1772797870428,-223.858172,0.00041096,120]
[407783347,1772797870437,-307.934071,0.00041096,120]
[407783348,1772797870446,-223.858172,0.00041096,120]
[407783349,1772797870456,-151.245665,0.00041096,120]
[407783350,1772797870476,-307.934071,0.00041096,120]
[407783351,1772797870486,-223.858172,0.00041096,120]
[407783352,1772797870495,-151.245665,0.00041096,120]
[407783353,1772797870504,-192.200977,0.00041096,120]
[407783354,1772797870513,-307.934071,0.00041096,120]
[407783355,1772797870522,-1247.0,0.00041096,120]
[407783356,1772797870531,-10000.0,0.00041096,30]
[407783357,1772797870541,-10000.0,0.00041096,30]
[407783358,1772797870550,-500.0,0.00041096,120]
[407783359,1772797870559,-500.0,0.00041096,120]
[407783360,1772797870572,-500.0,0.00041096,120]
[407783361,1772797870592,-500.0,0.00041096,120]
[407783362,1772797870611,-500.0,0.00041096,120]
[407783363,1772797870628,-500.0,0.00041096,120]
[407783364,1772797870638,-1000.0,0.00041096,30]
[407783365,1772797870649,-10000.0,0.00041096,30]
[407783366,1772797870659,-9000.0,0.00041096,30]
[407783367,1772797870669,-1566.0,0.00041096,120]
[407783368,1772797870678,-150.0,0.00041096,60]
[407783369,1772797870687,-242.66150145,0.00041096,120]
[407783370,1772797870696,-203.790435,0.00041199,120]
[407783371,1772797870706,-446.98519161,0.000412,30]
[407783372,1772797870714,-160.0,0.000412,10]
[407783373,1772797870723,-2227.37420207,0.0004123,5]
[407783374,1772797870732,-155.32,0.0004127,120]
[407783375,1772797870741,-724.53543,0.00041288,30]
[407783376,1772797870750,-200.0,0.000413,10]
[407783377,1772797870760,-746.0,0.0004137,120]
[407783378,1772797870769,-150.0,0.0004137,60]
[407783379,1772797870779,-468.0,0.000414,120]
[407783380,1772797870788,-2000.0,0.000414,2]
[407783381,1772797870797,-150.0,0.00041452,120]
[407783382,1772797870806,-724.53543,0.00041488,30]
[407783383,1772797870815,-543.27032465,0.000415,120]
[407783384,1772797870824,-183.5,0.0004153,30]
[407783385,1772797870833,-151.5,0.0004157,60]
[407783386,1772797870842,-746.0,0.00041644,120]
[407783387,1772797870851,-250.0,0.00041644,10]
[407783388,1772797870860,-250.0,0.00041644,10]
[407783389,1772797870869,-1000.0,0.00041644,7]
[407783390,1772797870879,-500.0,0.00041644,10]
[407783391,1772797870888,-1000.0,0.00041644,10]
[407783392,1772797870897,-285.60078591,0.00041644,60]
[407783393,1772797870906,-151.5,0.0004167,60]
[407783394,1772797870915,-200.0,0.00041673,2]
[407783395,1772797870924,-246.0,0.00041673,2]
[407783396,1772797870934,-800.0,0.00041673,13]
[407783397,1772797870943,-800.0,0.00041673,13]
[407783398,1772797870953,-800.0,0.00041673,13]
[407783399,1772797870965,-800.0,0.00041673,13]
[407783400,1772797870974,-800.0,0.00041673,13]
[407783401,1772797870983,-800.0,0.00041673,13]
[407783402,1772797870994,-800.0,0.00041673,13]
[407783403,1772797871003,-800.0,0.00041673,13]
[407783404,1772797871013,-800.0,0.00041673,13]
[407783405,1772797871023,-800.0,0.00041673,13]
[407783406,1772797871033,-800.0,0.00041673,13]
[407783407,1772797871042,-800.0,0.00041673,13]
[407783408,1772797871051,-800.0,0.00041673,13]
[407783409,1772797871060,-800.0,0.00041673,13]
[407783410,1772797871070,-800.0,0.00041673,13]
[407783411,1772797871080,-800.0,0.00041673,13]
[407783412,1772797871089,-800.0,0.00041673,13]
[407783413,1772797871099,-800.0,0.00041673,13]
[407783414,1772797871108,-800.0,0.00041673,13]
[407783415,1772797871117,-800.0,0.00041673,13]
[407783416,1772797871127,-800.0,0.00041673,13]
[407783417,1772797871136,-800.0,0.00041673,13]
[407783418,1772797871145,-800.0,0.00041673,13]
[407783419,1772797871154,-800.0,0.00041673,13]
[407783420,1772797871163,-800.0,0.00041673,13]
[407783421,1772797871172,-800.0,0.00041673,13]
[407783422,1772797871182,-800.0,0.00041673,13]
[407783423,1772797871191,-800.0,0.00041673,13]
[407783424,1772797871201,-800.0,0.00041673,13]
[407783425,1772797871211,-800.0,0.00041673,13]
[407783426,1772797871221,-200.0,0.00041673,2]
[407783427,1772797871231,-200.0,0.00041673,2]
[407783428,1772797871240,-200.0,0.00041673,2]
[407783429,1772797871250,-200.0,0.00041673,2]
[407783430,1772797871260,-200.0,0.00041673,2]
[407783431,1772797871270,-200.0,0.00041673,2]
[407783432,1772797871279,-200.0,0.00041673,2]
[407783433,1772797871289,-200.0,0.00041673,2]
[407783434,1772797871298,-200.0,0.00041673,2]
[407783435,1772797871307,-200.0,0.00041673,2]
[407783436,1772797871317,-200.0,0.00041673,2]
[407783437,1772797871326,-200.0,0.00041673,2]
[407783438,1772797871335,-800.0,0.00041673,13]
[407783439,1772797871345,-201.0,0.00041673,2]
[407783440,1772797871355,-800.0,0.00041673,13]
[407783441,1772797871365,-200.0,0.00041673,2]
[407783442,1772797871374,-800.0,0.00041673,13]
[407783443,1772797871384,-800.0,0.00041673,13]
[407783444,1772797871393,-800.0,0.00041673,13]
[407783445,1772797871410,-800.0,0.00041673,13]
[407783446,1772797871420,-800.0,0.00041673,13]
[407783447,1772797871430,-800.0,0.00041673,13]
[407783448,1772797871442,-800.0,0.00041673,13]
[407783449,1772797871452,-200.0,0.00041673,2]
[407783450,1772797871463,-200.0,0.00041673,2]
[407783451,1772797871474,-200.0,0.00041673,2]
[407783452,1772797871486,-200.0,0.00041673,2]
[407783453,1772797871495,-200.0,0.00041673,2]
[407783454,1772797871505,-200.0,0.00041673,2]
[407783455,1772797871515,-200.0,0.00041673,2]
[407783456,1772797871525,-200.0,0.00041673,2]
[407783457,1772797871534,-200.0,0.00041673,2]
[407783458,1772797871544,-200.0,0.00041673,2]
[407783459,1772797871553,-200.0,0.00041673,2]
[407783460,1772797871564,-200.0,0.00041673,2]
[407783461,1772797871574,-200.0,0.00041673,2]
[407783462,1772797871584,-800.0,0.00041673,13]
[407783463,1772797871594,-800.0,0.00041673,13]
[407783464,1772797871603,-200.0,0.00041673,2]
[407783465,1772797871613,-800.0,0.00041673,13]
[407783466,1772797871623,-800.0,0.00041673,13]
[407783467,1772797871633,-800.0,0.00041673,13]
[407783468,1772797871643,-800.0,0.00041673,13]
[407783469,1772797871654,-808.0,0.00041673,13]
[407783470,1772797871665,-200.0,0.00041673,2]
[407783471,1772797871675,-200.0,0.00041673,2]
[407783472,1772797871685,-200.0,0.00041673,2]
[407783473,1772797871696,-200.0,0.00041673,2]
[407783474,1772797871705,-200.0,0.00041673,2]
[407783475,1772797871714,-200.0,0.00041673,2]
[407783476,1772797871724,-200.0,0.00041673,2]
[407783477,1772797871734,-800.0,0.00041673,13]
[407783478,1772797871744,-864.0,0.00041673,13]
[407783479,1772797871753,-360.0,0.00041675,90]
[407783480,1772797871764,-1300.64494982,0.00041681,2]
[407783481,1772797871774,-724.53543,0.00041688,30]
[407783482,1772797871784,-11437.0,0.000417,117]
[407783483,1772797871795,-372.07016667,0.0004174,2]
[407783484,1772797871806,-31833.9151,0.00041781,120]
[407783485,1772797871817,-31833.9151,0.00041781,120]
[407783486,1772797871827,-31833.9151,0.00041781,120]
[407783487,1772797871838,-31833.9151,0.00041781,120]
[407783488,1772797871848,-31833.9151,0.00041781,120]
[407783489,1772797871859,-31833.9151,0.00041781,120]
[407783490,1772797871869,-31833.9151,0.00041781,120]
[407783491,1772797871880,-31833.9151,0.00041781,120]
[407783492,1772797871890,-31833.9151,0.00041781,120]
[407783493,1772797871900,-31833.9151,0.00041781,120]
[407783494,1772797871910,-31833.9151,0.00041781,120]
[407783495,1772797871920,-31833.9151,0.00041781,120]
[407783496,1772797871930,-153.0,0.000418,120]
[407783497,1772797871939,-151.0,0.000418,120]
[407783498,1772797871948,-1077.46982182,0.000418,120]
[407783499,1772797871961,-724.53543,0.00041888,30]
[407783500,1772797871971,-188.04834978,0.000419,120]
[407783501,1772797871980,-746.0,0.00041918,120]
[407783502,1772797871990,-600.0,0.00041918,10]
[407783503,1772797872001,-1000.0,0.00041918,10]
[407783504,1772797872010,-1000.0,0.00041926,45]
[407783505,1772797872019,-307.0,0.00042,120]
[407783506,1772797872029,-307.0,0.00042,120]
[407783507,1772797872042,-307.0,0.00042,120]
[407783508,1772797872064,-307.0,0.00042,120]
[407783509,1772797872075,-307.0,0.00042,120]
[407783510,1772797872084,-307.0,0.00042,120]
[407783511,1772797872093,-307.0,0.00042,120]
[407783512,1772797872103,-307.0,0.00042,120]
[407783513,1772797872113,-307.0,0.00042,120]
[407783514,1772797872123,-307.0,0.00042,120]
[407783515,1772797872133,-306.0,0.00042,120]
[407783516,1772797872144,-306.0,0.00042,120]
[407783517,1772797872154,-306.0,0.00042,120]
[407783518,1772797872164,-306.0,0.00042,120]
[407783519,1772797872173,-306.0,0.00042,120]
[407783520,1772797872183,-306.0,0.00042,120]
[407783521,1772797872193,-306.0,0.00042,120]
[407783522,1772797872204,-306.0,0.00042,120]
[407783523,1772797872213,-306.0,0.00042,120]
[407783524,1772797872223,-306.0,0.00042,120]
[407783525,1772797872233,-306.0,0.00042,120]
[407783526,1772797872243,-172.25318315,0.00042,120]
[407783527,1772797872253,-1083.89708103,0.00042,120]
[407783528,1772797872262,-220.06339271,0.00042,30]
[407783529,1772797872272,-794.7116516,0.00042,120]
[407783530,1772797872282,-353.65377743,0.00042,60]
[407783531,1772797872293,-207.25279163,0.00042,14]
[407783532,1772797872302,-1000.0,0.00042,120]
[407783533,1772797872312,-1000.0,0.00042,120]
[407783534,1772797872322,-500.0,0.00042,4]
[407783535,1772797872332,-500.0,0.00042,2]
[407783536,1772797872342,-232.1743604,0.00042,120]
[407783537,1772797872352,-977.15462023,0.00042,120]
[407783538,1772797872361,-470.39499386,0.00042,30]
[407783539,1772797872370,-1000.0,0.00042,120]
[407783540,1772797872380,-1000.0,0.00042,120]
[407783541,1772797872390,-438.79035625,0.00042,120]
[407783542,1772797872399,-428.0,0.00042,120]
[407783543,1772797872408,-223.0580088,0.00042,2]
[407783544,1772797872417,-359.0,0.00042,45]
[407783545,1772797872427,-17458.55839771,0.00042,120]
[407783546,1772797872436,-643.63391075,0.00042,120]
[407783547,1772797872446,-4798.0,0.00042,120]
[407783548,1772797872458,-3567.05,0.00042,14]
[407783549,1772797872468,-30000.0,0.00042,60]
[407783550,1772797872478,-1371.98329758,0.0004201,2]
[407783551,1772797872487,-475.41,0.00042037,30]
[407783552,1772797872497,-445.77608828,0.00042087,5]
[407783553,1772797872506,-582.0,0.000421,3]
[407783554,1772797872516,-1065.32,0.0004211,120]
[407783555,1772797872525,-151.5,0.00042145,60]
[407783556,1772797872535,-1042.7,0.0004217,30]
[407783557,1772797872544,-150.0,0.00042173,120]
[407783558,1772797872553,-500.0,0.00042191,120]
[407783559,1772797872562,-500.0,0.00042191,120]
[407783560,1772797872572,-504.32,0.00042191,120]
[407783561,1772797872582,-193.90639644,0.00042191,120]
[407783562,1772797872680,-746.0,0.00042192,120]
[407783563,1772797872690,-350.0,0.00042192,10]
[407783564,1772797872699,-350.0,0.00042192,10]
[407783565,1772797872709,-1500.0,0.00042192,7]
[407783566,1772797872718,-342.19469794,0.00042192,10]
[407783567,1772797872728,-5664.76548347,0.000422,2]
[407783568,1772797872737,-501.98692667,0.00042215,120]
[407783569,1772797872746,-175640.6586,0.0004222,7]
[407783570,1772797872756,-825.0,0.00042267,90]
[407783571,1772797872765,-151.5,0.00042274,60]
[407783572,1772797872774,-515.0,0.00042286,26]
[407783573,1772797872783,-151.5,0.00042404,60]
[407783574,1772797872793,-150.0,0.00042417,30]
[407783575,1772797872801,-159.49661076,0.00042417,30]
[407783576,1772797872810,-178.56416906,0.00042417,30]
[407783577,1772797872819,-237.39121081,0.00042417,30]
[407783578,1772797872829,-150.0,0.00042417,30]
[407783579,1772797872838,-259.39398879,0.00042417,30]
[407783580,1772797872846,-150.0,0.00042417,30]
[407783581,1772797872855,-496.10721813,0.00042417,30]
[407783582,1772797872865,-150.0,0.00042417,30]
[407783583,1772797872873,-196.401106,0.00042417,30]
[407783584,1772797872883,-150.0,0.00042417,30]
[407783585,1772797872892,-150.0,0.00042417,30]
[407783586,1772797872901,-150.0,0.00042417,30]
[407783587,1772797872910,-150.0,0.00042417,30]
[407783588,1772797872920,-198.36675964,0.00042417,30]
[407783589,1772797872929,-150.0,0.00042417,30]
[407783590,1772797872939,-150.0,0.00042417,30]
[407783591,1772797872949,-500.0,0.00042438,120]
[407783592,1772797872962,-159.49661076,0.00042465,30]
[407783593,1772797872971,-178.56416906,0.00042465,30]
[407783594,1772797872981,-237.39121081,0.00042465,30]
[407783595,1772797872991,-259.39398879,0.00042465,30]
[407783596,1772797873001,-496.10721813,0.00042465,30]
[407783597,1772797873010,-196.401106,0.00042465,30]
[407783598,1772797873019,-792.81,0.00042465,120]
[407783599,1772797873029,-792.81,0.00042465,120]
[407783600,1772797873039,-792.81,0.00042465,120]
[407783601,1772797873047,-792.81,0.00042465,120]
[407783602,1772797873057,-793.03,0.00042465,120]
[407783603,1772797873066,-746.0,0.00042466,120]
[407783604,1772797873075,-500.0,0.00042466,60]
[407783605,1772797873084,-500.0,0.00042466,60]
[407783606,1772797873093,-500.0,0.00042466,60]
[407783607,1772797873102,-500.0,0.00042466,60]
[407783608,1772797873111,-500.0,0.00042466,60]
[407783609,1772797873119,-500.0,0.00042466,60]
[407783610,1772797873128,-500.0,0.00042466,60]
[407783611,1772797873137,-500.0,0.00042466,60]
[407783612,1772797873146,-500.0,0.00042466,60]
[407783613,1772797873154,-500.0,0.00042466,60]
[407783614,1772797873163,-500.0,0.00042466,60]
[407783615,1772797873172,-500.0,0.00042466,60]
[407783616,1772797873181,-500.0,0.00042466,60]
[407783617,1772797873190,-500.0,0.00042466,60]
[407783618,1772797873199,-500.0,0.00042466,60]
[407783619,1772797873208,-500.0,0.00042466,60]
[407783620,1772797873217,-500.0,0.00042466,60]
[407783621,1772797873226,-500.0,0.00042466,60]
[407783622,1772797873235,-500.0,0.00042466,60]
[407783623,1772797873243,-500.0,0.00042466,60]
[407783624,1772797873253,-500.0,0.00042466,60]
[407783625,1772797873262,-500.0,0.00042466,60]
[407783626,1772797873271,-500.0,0.00042466,60]
[407783627,1772797873280,-500.0,0.00042466,60]
[407783628,1772797873289,-500.0,0.00042466,60]
[407783629,1772797873298,-500.0,0.00042466,60]
[407783630,1772797873307,-500.0,0.00042466,60]
[407783631,1772797873315,-500.0,0.00042466,60]
[407783632,1772797873324,-500.0,0.00042466,60]
[407783633,1772797873333,-500.0,0.00042466,60]
[407783634,1772797873342,-500.0,0.00042466,60]
[407783635,1772797873351,-500.0,0.00042466,60]
[407783636,1772797873360,-500.0,0.00042466,60]
[407783637,1772797873369,-500.0,0.00042466,60]
[407783638,1772797873378,-500.0,0.00042466,60]
[407783639,1772797873387,-500.0,0.00042466,60]
[407783640,1772797873396,-500.0,0.00042466,60]
[407783641,1772797873405,-500.0,0.00042466,60]
[407783642,1772797873415,-500.0,0.00042466,60]
[407783643,1772797873424,-500.0,0.00042466,60]
[407783644,1772797873433,-500.0,0.00042466,60]
[407783645,1772797873442,-500.0,0.00042466,60]
[407783646,1772797873451,-500.0,0.00042466,60]
[407783647,1772797873461,-500.0,0.00042466,60]
[407783648,1772797873471,-500.0,0.00042466,60]
[407783649,1772797873480,-500.0,0.00042466,60]
[407783650,1772797873490,-500.0,0.00042466,60]
[407783651,1772797873499,-500.0,0.00042466,60]
[407783652,1772797873509,-500.0,0.00042466,60]
[407783653,1772797873519,-500.0,0.00042466,60]
[407783654,1772797873528,-500.0,0.00042466,60]
[407783655,1772797873538,-500.0,0.00042466,60]
[407783656,1772797873547,-500.0,0.00042466,60]
[407783657,1772797873557,-500.0,0.00042466,60]
[407783658,1772797873567,-500.0,0.00042466,60]
[407783659,1772797873577,-500.0,0.00042466,60]
[407783660,1772797873587,-902.0,0.00042466,60]
[407783661,1772797873596,-1003.11,0.00042466,120]
[407783662,1772797873605,-500.0,0.00042466,120]
[407783663,1772797873614,-150.0,0.00042468,30]
[407783664,1772797873624,-878.63212158,0.000425,120]
[407783665,1772797873633,-1000.0,0.000425,120]
[407783666,1772797873642,-1000.0,0.000425,120]
[407783667,1772797873651,-1139.86118095,0.000425,120]
[407783668,1772797873660,-4805.37460487,0.000425,120]
[407783669,1772797873669,-150.0,0.00042501,30]
[407783670,1772797873678,-1048.50100127,0.00042506,2]
[407783671,1772797873687,-306.61635286,0.00042506,2]
[407783672,1772797873697,-856.13486,0.00042506,2]
[407783673,1772797873706,-307.8752279,0.00042506,2]
[407783674,1772797873715,-372.1160746,0.00042506,2]
[407783675,1772797873725,-300.28645221,0.00042506,2]
[407783676,1772797873734,-519.58908537,0.00042506,2]
[407783677,1772797873742,-300.0,0.00042506,2]
[407783678,1772797873751,-1084.19175733,0.00042506,2]
[407783679,1772797873760,-300.0,0.00042506,2]
[407783680,1772797873769,-300.93673575,0.00042506,2]
[407783681,1772797873778,-1048.50100127,0.00042506,2]
[407783682,1772797873787,-306.61635286,0.00042506,2]
[407783683,1772797873796,-307.8752279,0.00042506,2]
[407783684,1772797873804,-301.01024035,0.00042506,2]
[407783685,1772797873813,-301.97529056,0.00042506,2]
[407783686,1772797873823,-372.1160746,0.00042506,2]
[407783687,1772797873832,-300.0,0.00042506,2]
[407783688,1772797873840,-519.58908537,0.00042506,2]
[407783689,1772797873850,-306.82968308,0.00042506,2]
[407783690,1772797873859,-300.0,0.00042506,2]
[407783691,1772797873868,-1084.19175733,0.00042506,2]
[407783692,1772797873877,-300.0,0.00042506,2]
[407783693,1772797873886,-300.0,0.00042506,2]
[407783694,1772797873896,-300.0,0.00042506,2]
[407783695,1772797873906,-1048.50100127,0.00042506,2]
[407783696,1772797873915,-306.61635286,0.00042506,2]
[407783697,1772797873924,-300.94596422,0.00042506,2]
[407783698,1772797873934,-856.13486003,0.00042506,2]
[407783699,1772797873944,-301.04099642,0.00042506,2]
[407783700,1772797873954,-301.1779551,0.00042506,2]
[407783701,1772797873965,-301.0233134,0.00042506,2]
[407783702,1772797873974,-301.04636085,0.00042506,2]
[407783703,1772797873984,-307.87522793,0.00042506,2]
[407783704,1772797873994,-300.0,0.00042506,2]
[407783705,1772797874004,-300.0,0.00042506,2]
[407783706,1772797874013,-300.0,0.00042506,2]
[407783707,1772797874023,-301.40535018,0.00042506,2]
[407783708,1772797874033,-300.98948013,0.00042506,2]
[407783709,1772797874042,-372.1160746,0.00042506,2]
[407783710,1772797874051,-300.0,0.00042506,2]
[407783711,1772797874060,-300.28645221,0.00042506,2]
[407783712,1772797874069,-301.00940719,0.00042506,2]
[407783713,1772797874078,-519.58908537,0.00042506,2]
[407783714,1772797874087,-306.8296831,0.00042506,2]
[407783715,1772797874097,-301.00708898,0.00042506,2]
[407783716,1772797874105,-301.46382453,0.00042506,2]
[407783717,1772797874114,-651.71896752,0.00042506,2]
[407783718,1772797874123,-301.00734927,0.00042506,2]
[407783719,1772797874132,-300.0,0.00042506,2]
[407783720,1772797874141,-300.95441166,0.00042506,2]
[407783721,1772797874149,-1084.19175733,0.00042506,2]
[407783722,1772797874159,-300.0,0.00042506,2]
[407783723,1772797874167,-300.0,0.00042506,2]
[407783724,1772797874176,-1048.50100128,0.00042506,2]
[407783725,1772797874185,-306.61635286,0.00042506,2]
[407783726,1772797874195,-300.0,0.00042506,2]
[407783727,1772797874204,-856.13486,0.00042506,2]
[407783728,1772797874213,-307.8752279,0.00042506,2]
[407783729,1772797874222,-300.0,0.00042506,2]
[407783730,1772797874230,-459.47941262,0.00042506,2]
[407783731,1772797874239,-365.7994515,0.00042506,2]
[407783732,1772797874246,-472.64845479,0.00042506,2]
[407783733,1772797874254,-372.1160746,0.00042506,2]
[407783734,1772797874262,-300.0,0.00042506,2]
[407783735,1772797874271,-300.28645221,0.00042506,2]
[407783736,1772797874280,-301.12214223,0.00042506,2]
[407783737,1772797874290,-306.82968308,0.00042506,2]
[407783738,1772797874300,-519.58908537,0.00042506,2]
[407783739,1772797874309,-300.0,0.00042506,2]
[407783740,1772797874319,-300.0,0.00042506,2]
[407783741,1772797874328,-300.0,0.00042506,2]
[407783742,1772797874337,-1084.19175733,0.00042506,2]
[407783743,1772797874346,-521.32670381,0.00042506,2]
[407783744,1772797874355,-300.0,0.00042506,2]
[407783745,1772797874364,-300.0,0.00042506,2]
[407783746,1772797874374,-1048.50100127,0.00042506,2]
[407783747,1772797874383,-306.61635286,0.00042506,2]
[407783748,1772797874391,-856.13486003,0.00042506,2]
[407783749,1772797874400,-307.87522791,0.00042506,2]
[407783750,1772797874410,-300.0,0.00042506,2]
[407783751,1772797874419,-459.47941262,0.00042506,2]
[407783752,1772797874428,-348.61252797,0.00042506,2]
[407783753,1772797874437,-372.1160746,0.00042506,2]
[407783754,1772797874447,-519.38878178,0.00042506,2]
[407783755,1772797874456,-306.8296831,0.00042506,2]
[407783756,1772797874465,-300.56560424,0.00042506,2]
[407783757,1772797874474,-300.00000001,0.00042506,2]
[407783758,1772797874483,-1084.19175733,0.00042506,2]
[407783759,1772797874493,-300.71995915,0.00042506,2]
[407783760,1772797874502,-300.0,0.00042506,2]
[407783761,1772797874511,-1048.50100127,0.00042506,2]
[407783762,1772797874521,-306.61635286,0.00042506,2]
[407783763,1772797874531,-856.13486,0.00042506,2]
[407783764,1772797874541,-307.87522791,0.00042506,2]
[407783765,1772797874551,-301.3366208,0.00042506,2]
[407783766,1772797874561,-459.47941262,0.00042506,2]
[407783767,1772797874572,-496.58612596,0.00042506,2]
[407783768,1772797874581,-512.06974061,0.00042506,2]